fUSD/lending_fUSD_20250331
["ID","MTS","AMOUNT","RATE_DAILY","PERIOD"]
[356894732,1743396637658,-20466.23224262,0.00015,2]
[356894733,1743396637669,-11333.89980342,0.00015,2]
[356894734,1743396637703,-983.76745006,0.00015,2]
[356894735,1743396637714,-358.33485164,0.00015,2]
[356894736,1743396637726,-734.52334418,0.00015,2]
[356894737,1743396637735,-13812.69329584,0.00015079,2]
[356894738,1743396637760,-359.28,0.00015079,2]
[356894740,1743396637772,-485.4608619,0.00015079,2]
[356894743,1743396637783,-2444.40463056,0.00015079,2]
[356894745,1743396637793,-500.0,0.000156,2]
[356894746,1743396637802,-506.02236567,0.00016026,2]
[356894748,1743396637811,-201.1082311,0.00016225,2]
[356894750,1743396637820,-168.53246851,0.00016225,2]
[356894752,1743396637830,-350.0,0.00016389,3]
[356894754,1743396637839,-350.0,0.00016389,3]
[356894756,1743396637848,-350.0,0.00016389,3]
[356894758,1743396637858,-150.0,0.00016389,2]
[356894759,1743396637867,-153.57033432,0.00016458,2]
[356894762,1743396637876,-160.56242352,0.00016458,2]
[356894764,1743396637885,-501.07473719,0.00016458,2]
[356894766,1743396637898,-600.0,0.00016737,2]
[356894768,1743396637909,-152.03778292,0.0002,2]
[356894770,1743396637920,-661.06,0.0002019,2]
[356894772,1743396637929,-150.0,0.00021917,2]
[356894774,1743396637939,-280.77,0.00022099,2]
[356894776,1743396637948,-1000.0,0.000222,2]
[356894778,1743396637958,-211.91,0.00022333,2]
[356894780,1743396637967,-661.06,0.00022454,2]
[356894782,1743396637976,-1062.0,0.00023,2]
[356894784,1743396637986,-171.47,0.0002301,2]
[356894786,1743396637995,-161.51,0.00023029,2]
[356894788,1743396638004,-150.0,0.00023121,7]
[356894789,1743396638013,-150.0,0.00023287,2]
[356894791,1743396638022,-4656.45,0.00023315,2]
[356894793,1743396638031,-826.09,0.00023331,2]
[356894795,1743396638040,-161.51,0.00023374,2]
[356894797,1743396638050,-307.41,0.00023438,2]
[356894799,1743396638059,-23900.0,0.00023516,2]
[356894801,1743396638068,-173.52,0.00023653,2]
[356894803,1743396638078,-161.51,0.0002372,2]
[356894806,1743396638091,-178.04,0.00023836,2]
[356894808,1743396638100,-150.0,0.00023883,2]
[356894810,1743396638109,-25908.87,0.00023899,2]
[356894811,1743396638119,-250.0,0.00023918,2]
[356894813,1743396638128,-1000.0,0.00023968,2]
[356894815,1743396638137,-494.323,0.00024,5]
[356894817,1743396638146,-386.95,0.00024059,2]
[356894819,1743396638155,-200.0,0.00024083,2]
[356894821,1743396638164,-5037.06,0.00024083,2]
[356894823,1743396638173,-200.0,0.00024118,2]
[356894825,1743396638183,-1081.05,0.00024124,2]
[356894827,1743396638193,-3845.0,0.00024152,2]
[356894829,1743396638202,-319.54,0.00024164,2]
[356894831,1743396638211,-3493.897688,0.00024249,2]
[356894833,1743396638220,-150.0,0.00024657,2]
[356894835,1743396638229,-661.06,0.00024718,2]
[356894837,1743396638239,-250.0,0.00025,2]
[356894839,1743396638248,-4226.77836899,0.0002501,2]
[356894841,1743396638257,-6226.0055438,0.00025116,2]
[356894843,1743396638266,-150.0,0.00026027,2]
[356894845,1743396638275,-173.54,0.00026849,2]
[356894846,1743396638284,-205.96,0.00026849,2]
[356894848,1743396638293,-153.64,0.00026849,2]
[356894850,1743396638302,-1000.0,0.00026963,2]
[356894852,1743396638311,-661.06,0.00026982,2]
[356894854,1743396638320,-300.0,0.00027,2]
[356894856,1743396638329,-150.0,0.00027397,2]
[356894858,1743396638338,-379.83,0.00027397,2]
[356894860,1743396638347,-427.3713121,0.000274,2]
[356894862,1743396638356,-160.87229059,0.00027799,2]
[356894864,1743396638366,-30000.0,0.00027844,2]
[356894866,1743396638376,-1001.216,0.00027899,2]
[356894868,1743396638385,-150.69235673,0.00028297,120]
[356894870,1743396638395,-150.0,0.00028767,2]
[356894872,1743396638404,-379.83,0.00028767,2]
[356894874,1743396638413,-155.9026408,0.00028799,120]
[356894876,1743396638422,-350.0,0.00029,2]
[356894878,1743396638431,-661.06,0.00029246,2]
[356894880,1743396638440,-1289.448,0.0002965,2]
[356894882,1743396638449,-2047.031,0.0002965,2]
[356894884,1743396638459,-686.782,0.0002965,2]
[356894886,1743396638468,-1427.078,0.0002965,2]
[356894888,1743396638477,-576.215,0.0002965,2]
[356894890,1743396638486,-1278.632,0.0002965,2]
[356894892,1743396638495,-793.0,0.0002965,2]
[356894894,1743396638506,-912.506,0.0002965,2]
[356894896,1743396638515,-545.572,0.0002965,2]
[356894898,1743396638524,-1439.864,0.0002965,2]
[356894899,1743396638533,-4091.0,0.0002965,2]
[356894901,1743396638542,-165.364,0.0002965,2]
[356894903,1743396638551,-3975.386,0.0002965,2]
[356894905,1743396638560,-1016.507,0.0002965,2]
[356894907,1743396638569,-150.0,0.0002965,2]
[356894909,1743396638579,-1000.0,0.00029959,2]
[356894911,1743396638587,-155.95622322,0.0003,60]
[356894913,1743396638597,-32182.89260458,0.0003,2]
[356894915,1743396638606,-334.97691814,0.0003,30]
[356894917,1743396638615,-150.0,0.00030136,2]
[356894919,1743396638623,-379.83,0.00030137,2]
[356894921,1743396638632,-200.0,0.00030137,2]
[356894923,1743396638642,-2000.0,0.00030639,5]
[356894925,1743396638651,-274.70365942,0.000309,2]
[356894926,1743396638660,-595.00711247,0.00031,2]
[356894928,1743396638669,-300.0,0.00031,2]
[356894930,1743396638679,-300.0,0.00031,2]
[356894932,1743396638688,-300.0,0.00031,2]
[356894934,1743396638697,-593.07473256,0.00031,2]
[356894936,1743396638706,-400.0,0.00031,2]
[356894938,1743396638715,-150.0,0.00031506,2]
[356894940,1743396638725,-379.83,0.00031507,2]
[356894942,1743396638734,-661.06,0.0003151,2]
[356894944,1743396638743,-3000.0,0.00031586,30]
[356894946,1743396638751,-2500.0,0.00031586,30]
[356894948,1743396638760,-500.0,0.00031586,30]
[356894950,1743396638769,-155.96029573,0.00031586,30]
[356894952,1743396638778,-2500.0,0.00031613,30]
[356894954,1743396638787,-500.0,0.00031613,30]
[356894956,1743396638795,-2500.0,0.00031641,30]
[356894958,1743396638804,-500.0,0.00031641,30]
[356894960,1743396638814,-2500.0,0.00031668,30]
[356894962,1743396638823,-500.0,0.00031668,30]
[356894964,1743396638832,-2500.0,0.00031696,30]
[356894966,1743396638841,-998.988004,0.00031696,30]
[356894968,1743396638850,-2500.0,0.00031723,30]
[356894969,1743396638860,-2500.0,0.0003175,30]
[356894972,1743396638871,-2500.0,0.00031778,30]
[356894974,1743396638881,-3153.23470783,0.000318,2]
[356894976,1743396638891,-2500.0,0.00031805,30]
[356894978,1743396638900,-2500.0,0.00031833,30]
[356894980,1743396638911,-2500.0,0.0003186,30]
[356894982,1743396638921,-2500.0,0.00031887,30]
[356894983,1743396638930,-2500.0,0.00031915,30]
[356894985,1743396638939,-955.0,0.00031942,5]
[356894987,1743396638948,-2500.0,0.00031942,30]
[356894989,1743396638958,-2500.0,0.0003197,30]
[356894991,1743396638967,-2500.0,0.00031997,30]
[356894993,1743396638977,-2500.0,0.00032024,30]
[356894995,1743396638986,-2500.0,0.00032052,30]
[356894997,1743396638996,-2500.0,0.00032079,30]
[356894999,1743396639005,-2519.85161642,0.00032107,30]
[356895001,1743396639015,-502.7,0.00032142,14]
[356895003,1743396639024,-532.48604034,0.00032291,5]
[356895005,1743396639033,-158.967,0.00032464,2]
[356895007,1743396639043,-150.199,0.00032464,2]
[356895009,1743396639052,-150.2,0.00032464,2]
[356895011,1743396639061,-205.96,0.00032646,2]
[356895013,1743396639071,-1283.0,0.0003265,2]
[356895015,1743396639080,-2040.0,0.0003265,2]
[356895017,1743396639089,-643.0,0.0003265,2]
[356895019,1743396639098,-1423.0,0.0003265,2]
[356895021,1743396639107,-573.0,0.0003265,2]
[356895023,1743396639116,-1275.0,0.0003265,2]
[356895025,1743396639125,-789.0,0.0003265,2]
[356895027,1743396639134,-908.0,0.0003265,2]
[356895029,1743396639145,-543.0,0.0003265,2]
[356895031,1743396639154,-1433.0,0.0003265,2]
[356895033,1743396639163,-4091.0,0.0003265,2]
[356895035,1743396639173,-151.0,0.0003265,2]
[356895037,1743396639182,-3948.0,0.0003265,2]
[356895039,1743396639191,-1016.0,0.0003265,2]
[356895041,1743396639199,-150.0,0.0003265,2]
[356895042,1743396639208,-150.0,0.00032876,2]
[356895044,1743396639217,-379.83,0.00032877,2]
[356895046,1743396639226,-153.02,0.00032932,120]
[356895048,1743396639236,-1000.0,0.00032955,2]
[356895050,1743396639245,-5009.0738988,0.00032995,2]
[356895052,1743396639254,-150.0,0.00033192,2]
[356895054,1743396639263,-150.0,0.00033197,2]
[356895056,1743396639272,-150.0,0.00033201,2]
[356895058,1743396639282,-150.0,0.00033212,2]
[356895060,1743396639292,-150.0,0.00033214,2]
[356895062,1743396639300,-150.0,0.00033215,2]
[356895064,1743396639311,-150.0,0.00033217,2]
[356895066,1743396639320,-628.06952981,0.00033223,2]
[356895068,1743396639329,-150.0,0.00033229,2]
[356895070,1743396639339,-150.0,0.00033234,2]
[356895072,1743396639348,-150.0,0.00033235,2]
[356895074,1743396639357,-150.0,0.00033238,2]
[356895076,1743396639366,-150.0,0.00033239,2]
[356895078,1743396639375,-150.0,0.00033247,2]
[356895080,1743396639384,-150.0,0.00033248,2]
[356895082,1743396639394,-150.0,0.00033249,2]
[356895084,1743396639403,-150.0,0.00033251,2]
[356895086,1743396639412,-150.0,0.00033252,2]
[356895088,1743396639421,-1000.0,0.00033255,2]
[356895090,1743396639430,-150.0,0.00033256,2]
[356895092,1743396639439,-150.0,0.00033258,2]
[356895094,1743396639448,-150.0,0.00033258,2]
[356895096,1743396639457,-150.0,0.0003326,2]
[356895098,1743396639466,-150.0,0.00033261,2]
[356895100,1743396639476,-150.0,0.00033262,2]
[356895102,1743396639485,-150.0,0.00033266,2]
[356895104,1743396639494,-150.0,0.00033274,2]
[356895106,1743396639503,-150.0,0.00033277,2]
[356895108,1743396639513,-150.0,0.00033277,2]
[356895109,1743396639522,-150.0,0.00033278,2]
[356895111,1743396639531,-150.0,0.00033279,2]
[356895113,1743396639540,-150.0,0.0003328,2]
[356895115,1743396639549,-150.0,0.00033283,2]
[356895117,1743396639558,-150.0,0.00033286,2]
[356895119,1743396639567,-150.0,0.00033287,2]
[356895121,1743396639577,-150.0,0.00033288,2]
[356895123,1743396639585,-46.94507642,0.00033296,2]
[356895135,1743396639688,-150.0,0.00033232,2]
[356895137,1743396639699,-150.0,0.00033233,2]
[356895139,1743396639708,-150.0,0.00033263,2]
[356895141,1743396639718,-103.05492358,0.00033296,2]
[356895143,1743396639727,-150.0,0.00033301,2]
[356895145,1743396639737,-150.0,0.00033307,2]
[356895147,1743396639746,-150.0,0.0003331,2]
[356895149,1743396639755,-150.0,0.0003331,2]
[356895151,1743396639765,-150.0,0.00033313,2]
[356895153,1743396639774,-1000.0,0.00033313,2]
[356895154,1743396639783,-150.0,0.00033314,2]
[356895155,1743396639793,-150.0,0.00033315,2]
[356895157,1743396639803,-150.0,0.00033315,2]
[356895159,1743396639813,-150.0,0.00033318,2]
[356895161,1743396639823,-150.0,0.00033321,2]
[356895163,1743396639832,-150.0,0.00033322,2]
[356895165,1743396639841,-150.0,0.00033326,2]
[356895167,1743396639851,-150.0,0.00033332,2]
[356895169,1743396639860,-150.0,0.00033333,2]
[356895171,1743396639869,-150.0,0.00033334,2]
[356895172,1743396639878,-150.0,0.00033335,2]
[356895174,1743396639889,-150.0,0.00033336,2]
[356895176,1743396639899,-150.0,0.00033338,2]
[356895178,1743396639909,-150.0,0.00033339,2]
[356895179,1743396639920,-274.70365942,0.00033344,2]
[356895180,1743396639930,-150.0,0.00033346,2]
[356895181,1743396639939,-150.0,0.00033349,2]
[356895182,1743396640062,-150.0,0.0003335,2]
[356895183,1743396640074,-1000.0,0.00033351,2]
[356895184,1743396640084,-150.0,0.00033352,2]
[356895185,1743396640094,-150.0,0.00033353,2]
[356895186,1743396640105,-150.0,0.00033353,2]
[356895187,1743396640114,-150.0,0.00033355,2]
[356895188,1743396640124,-150.0,0.00033355,2]
[356895189,1743396640134,-150.0,0.00033357,2]
[356895190,1743396640144,-150.0,0.00033359,2]
[356895191,1743396640154,-1000.0,0.00033361,2]
[356895192,1743396640164,-150.0,0.00033362,2]
[356895193,1743396640174,-228.43100312,0.00033364,2]
[356895194,1743396640183,-150.0,0.00033368,2]
[356895195,1743396640194,-150.0,0.00033369,2]
[356895196,1743396640204,-150.0,0.00033377,2]
[356895197,1743396640214,-150.0,0.00033377,2]
[356895198,1743396640224,-150.0,0.0003338,2]
[356895199,1743396640234,-150.0,0.0003338,2]
[356895200,1743396640244,-150.0,0.00033383,2]
[356895201,1743396640254,-150.0,0.00033387,2]
[356895202,1743396640263,-150.0,0.00033389,2]
[356895203,1743396640273,-150.0,0.00033391,2]
[356895204,1743396640283,-150.0,0.00033394,2]
[356895206,1743396640292,-150.0,0.00033394,2]
[356895208,1743396640301,-150.0,0.00033395,2]
[356895209,1743396640310,-1000.0,0.00033398,2]
[356895211,1743396640319,-120.11693818,0.000334,2]
[356895213,1743396640332,-29.88306182,0.000334,2]
[356895215,1743396640341,-150.0,0.000334,2]
[356895217,1743396640351,-150.0,0.00033401,2]
[356895219,1743396640360,-150.0,0.00033401,2]
[356895221,1743396640371,-150.0,0.00033408,2]
[356895223,1743396640380,-150.0,0.00033408,2]
[356895226,1743396640392,-150.0,0.00033409,2]
[356895228,1743396640402,-150.0,0.0003341,2]
[356895230,1743396640412,-150.0,0.00033413,2]
[356895232,1743396640422,-150.0,0.00033413,2]
[356895234,1743396640431,-150.0,0.00033413,2]
[356895236,1743396640440,-1000.0,0.00033413,2]
[356895237,1743396640450,-150.0,0.00033417,2]
[356895239,1743396640459,-150.0,0.00033418,2]
[356895241,1743396640469,-150.0,0.00033423,2]
[356895243,1743396640478,-150.0,0.00033432,2]
[356895245,1743396640487,-150.0,0.00033436,2]
[356895247,1743396640496,-150.0,0.00033438,2]
[356895249,1743396640505,-150.0,0.0003344,2]
[356895251,1743396640515,-150.0,0.00033442,2]
[356895253,1743396640523,-150.0,0.00033446,2]
[356895255,1743396640533,-150.0,0.00033446,2]
[356895257,1743396640542,-150.0,0.00033448,2]
[356895259,1743396640551,-150.0,0.00033449,2]
[356895260,1743396640560,-67.90250122,0.00033449,2]
[356895267,1743396640618,-150.0,0.00033206,2]
[356895269,1743396640627,-150.0,0.00033228,2]
[356895271,1743396640637,-150.0,0.00033254,2]
[356895273,1743396640646,-150.0,0.00033265,2]
[356895275,1743396640656,-150.0,0.00033294,2]
[356895277,1743396640666,-150.0,0.0003334,2]
[356895279,1743396640675,-150.0,0.00033393,2]
[356895281,1743396640684,-150.0,0.00033403,2]
[356895283,1743396640694,-150.0,0.00033416,2]
[356895285,1743396640703,-150.0,0.00033439,2]
[356895287,1743396640714,-82.09749878,0.00033449,2]
[356895289,1743396640724,-150.0,0.00033454,2]
[356895291,1743396640734,-150.0,0.00033459,2]
[356895292,1743396640743,-150.0,0.00033461,2]
[356895294,1743396640753,-150.0,0.00033462,2]
[356895296,1743396640764,-1998.15385423,0.00033464,2]
[356895298,1743396640773,-300.0,0.0003347,30]
[356895300,1743396640783,-760.37608866,0.0003347,2]
[356895302,1743396640793,-1162.24704154,0.00033472,2]
[356895304,1743396640802,-200.0,0.00033474,2]
[356895306,1743396640812,-200.0,0.00033474,2]
[356895308,1743396640821,-200.0,0.00033474,2]
[356895310,1743396640831,-175.0,0.00033474,2]
[356895312,1743396640841,-546.82777563,0.00033477,2]
[356895412,1743396642654,-150.0,0.00033259,2]
[356895414,1743396642666,-150.0,0.00033263,2]
[356895415,1743396642676,-150.0,0.00033289,2]
[356895416,1743396642686,-77.2466018,0.00033299,2]
[356895425,1743396643580,-72.7533982,0.00033299,2]
[356895426,1743396643589,-150.0,0.000333,2]
[356895427,1743396643598,-150.0,0.00033305,2]
[356895428,1743396643607,-150.0,0.00033314,2]
[356895429,1743396643616,-150.0,0.00033319,2]
[356895430,1743396643625,-150.0,0.00033336,2]
[356895431,1743396643634,-150.0,0.00033364,2]
[356895432,1743396643643,-150.0,0.000334,2]
[356895433,1743396643654,-150.0,0.0003341,2]
[356895434,1743396643663,-150.0,0.00033417,2]
[356895435,1743396643672,-150.0,0.00033429,2]
[356895436,1743396643682,-150.0,0.0003347,2]
[356895437,1743396643691,-2643.65273186,0.00033477,2]
[356895438,1743396643700,-13987.0769796,0.00033485,2]
[356895439,1743396643709,-8436.96278068,0.0003349,2]
[356895440,1743396643721,-380.09194999,0.0003349,2]
[356895441,1743396643732,-990.39214911,0.0003349,2]
[356895445,1743396645512,-279.0414,0.00014979,2]
[356895446,1743396645526,-15.98625253,0.00014979,2]
[356895447,1743396645536,-5494.16799417,0.0003349,2]
[356895449,1743396645547,-4679.92366835,0.0003349,2]
[356895450,1743396645557,-712.682,0.00033495,30]
[356895451,1743396645566,-6094.79819568,0.00033497,2]
[356895452,1743396645577,-348.95445286,0.00033497,2]
[356895466,1743396646023,-21530.40131066,0.00033497,2]
[356895468,1743396646033,-150.0,0.000335,2]
[356895470,1743396646042,-960.0,0.000335,2]
[356895472,1743396646051,-2000.0,0.00033507,30]
[356895474,1743396646059,-2000.0,0.00033507,30]
[356895475,1743396646068,-2000.0,0.00033507,30]
[356895476,1743396646078,-2000.0,0.00033507,30]
[356895478,1743396646086,-2000.0,0.00033507,30]
[356895480,1743396646096,-2000.0,0.00033507,30]
[356895482,1743396646105,-661.06,0.00033774,2]
[356895484,1743396646114,-200.0,0.00033809,2]
[356895486,1743396646123,-200.0,0.00033809,2]
[356895488,1743396646134,-200.0,0.00033809,2]
[356895490,1743396646143,-200.0,0.00034147,2]
[356895492,1743396646153,-200.0,0.00034147,2]
[356895494,1743396646162,-200.0,0.00034147,2]
[356895495,1743396646171,-150.0,0.00034246,2]
[356895498,1743396646181,-200.0,0.00034488,2]
[356895500,1743396646190,-200.0,0.00034488,2]
[356895501,1743396646199,-171.47,0.00034515,2]
[356895515,1743396646208,-200.0,0.00034833,2]
[356895517,1743396646328,-150.0,0.00035464,2]
[356895519,1743396646337,-150.0,0.00035616,2]
[356895521,1743396646347,-154.14,0.00035616,2]
[356895523,1743396646356,-1283.0,0.0003565,2]
[356895525,1743396646365,-2040.0,0.0003565,2]
[356895527,1743396646374,-643.0,0.0003565,2]
[356895529,1743396646383,-1423.0,0.0003565,2]
[356895531,1743396646392,-573.0,0.0003565,2]
[356895533,1743396646403,-1275.0,0.0003565,2]
[356895535,1743396646412,-76.98441822,0.0003565,2]
[356895537,1743396646426,-712.01558178,0.0003565,2]
[356895539,1743396646436,-523.843,0.0003565,2]
[356895541,1743396646445,-3948.0,0.0003565,2]
[356895543,1743396646455,-1016.0,0.0003565,2]
[356895545,1743396646464,-274.70365942,0.00035789,2]
[356895547,1743396646473,-1000.0,0.00035951,2]
[356895549,1743396646483,-150.0,0.00036013,2]
[356895551,1743396646492,-479.76681136,0.00036013,2]
[356895553,1743396646502,-661.06,0.00036038,2]
[356895555,1743396646511,-256.4776085,0.00036438,120]
[356895557,1743396646521,-223.0,0.0003669,2]
[356895559,1743396646530,-327.20800441,0.000367,2]
[356895561,1743396646541,-932.7891,0.000367,10]
[356895563,1743396646550,-452.28,0.00036712,2]
[356895565,1743396646560,-444.05,0.0003674,2]
[356895567,1743396646569,-444.05,0.0003674,2]
[356895569,1743396646579,-782.79,0.0003674,2]
[356895571,1743396646588,-444.05,0.0003674,2]
[356895573,1743396646597,-444.05,0.0003674,2]
[356895575,1743396646607,-782.79,0.0003674,2]
[356895577,1743396646616,-782.79,0.0003674,2]
[356895579,1743396646626,-151.31,0.00036751,2]
[356895581,1743396646635,-40507.3462704,0.0003676,3]
[356895582,1743396646644,-10126.8365676,0.00036765,3]
[356895584,1743396646654,-30380.5097028,0.0003677,3]
[356895586,1743396646664,-6738.2585198,0.00036775,2]
[356895588,1743396646673,-18508.9155654,0.00036775,2]
[356895590,1743396646684,-31287.47563499,0.0003678,3]
[356895593,1743396646696,-1689.4063422,0.0003678,3]
[356895595,1743396646707,-8731.48722339,0.0003678,3]
[356895596,1743396646719,-6136.8892724,0.0003678,3]
[356895597,1743396646731,-4313.10153716,0.0003678,3]
[356895598,1743396646742,-864.53248379,0.0003678,3]
[356895599,1743396646754,-313.06330969,0.0003678,3]
[356895600,1743396646766,-496.302152,0.0003678,3]
[356895601,1743396646777,-2331.18585284,0.0003678,3]
[356895850,1743396649331,-151.28,0.000149,2]
[356896052,1743396659433,-57.9079,0.000149,2]
[356896053,1743396659455,-140.8121,0.00014999,2]
[356896054,1743396661940,-150.0,0.00014998,2]
[356896055,1743396677952,-198.72,0.000149,2]
[356896056,1743396721547,350.0,0.00014939,3]
[356896057,1743396742956,152.53,0.00013699,2]
[356896058,1743396794203,-208.67237705,0.00014879,2]
[356896059,1743397028141,3249.255409,7.945e-05,2]
[356896060,1743397083309,350.0,0.0001489,3]
[356896061,1743397084630,-150.0,0.00014879,2]
[356896062,1743397204026,-150.0,0.0001489,2]
[356896063,1743397204699,350.0,0.00014895,3]
[356896064,1743397256975,233.51882551,0.000148,2]
[356896065,1743397262623,-151.33,0.00014879,2]
[356896066,1743397518438,244.35297732,0.000148,2]
[356896067,1743397733665,-500.0,0.0001489,2]
[356896068,1743397733688,-452.53029525,0.0001489,2]
[356896069,1743397733710,-150.0,0.00014892,2]
[356896070,1743397733731,-801.28,0.000149,2]
[356896071,1743397733753,-512.9985,0.000149,2]
[356896072,1743397733774,-500.0,0.00014979,2]
[356896088,1743397831801,-350.0,0.00016378,3]
[356896089,1743397831810,-150.0,0.00016378,2]
[356896090,1743397831820,-350.0,0.00016378,3]
[356896091,1743397831830,-150.0,0.00016378,2]
[356896092,1743397831840,-350.0,0.00018016,3]
[356896093,1743397831850,-150.0,0.00018016,2]
[356896094,1743397831860,-710.87745213,0.00026467,2]
[356896095,1743397831872,-60.86924787,0.00026467,2]
[356896096,1743397831882,-2468.8593,0.00026567,2]
[356896097,1743397831892,-173.54,0.00026849,2]
[356896098,1743397831901,-3988.0,0.000277,5]
[356896099,1743397831911,-442.138173,0.00027787,2]
[356896100,1743397831921,-430.69601771,0.00027936,2]
[356896101,1743397831933,-585.30398229,0.00027936,2]
[356896102,1743397831943,-6388.25320085,0.0003,5]
[356896103,1743397831955,-491.3085881,0.0003,5]
[356896104,1743397831972,-1385.34799802,0.0003,5]
[356896105,1743397832027,-396.3812676,0.0003,5]
[356896106,1743397832086,-724.68,0.0003,5]
[356896107,1743397832098,-614.02894543,0.0003,5]
[356896108,1743397832108,-427.52,0.00030395,2]
[356896109,1743397832117,-858.45105457,0.00030924,2]
[356896110,1743397832149,-650.94894543,0.00030924,2]
[356896111,1743397832161,-473.54961303,0.00030936,2]
[356896112,1743397832173,-388.23371062,0.00030936,2]
[356896113,1743397832185,-154.21667635,0.00030936,2]
[356896114,1743397832195,-3024.25784547,0.0003101,2]
[356896115,1743397832207,-959.44908291,0.0003101,2]
[356896116,1743397832220,-289.64307162,0.0003101,2]
[356896117,1743397832230,-395.458,0.0003101,28]
[356896118,1743397832240,-302.0,0.00031089,2]
[356896119,1743397832249,-500.0,0.0003109,2]
[356896120,1743397832259,-167.90508165,0.0003109,2]
[356896121,1743397832273,-500.0,0.0003109,2]
[356896122,1743397832283,-500.0,0.0003109,2]
[356896123,1743397832292,-500.0,0.0003109,2]
[356896124,1743397832302,-500.0,0.0003109,2]
[356896125,1743397832312,-500.0,0.0003109,2]
[356896126,1743397832321,-500.0,0.0003109,2]
[356896127,1743397832331,-500.0,0.0003109,2]
[356896128,1743397832342,-500.0,0.0003109,2]
[356896129,1743397832351,-330.67015775,0.0003109,2]
[356896130,1743397832363,-169.32984225,0.0003109,2]
[356896131,1743397832372,-500.0,0.0003109,2]
[356896133,1743397832381,-4689.01,0.00031095,2]
[356896134,1743397832390,-3691.06,0.00031095,2]
[356896136,1743397832399,-150.0,0.00031143,7]
[356896137,1743397832409,-184.73,0.00031668,2]
[356896138,1743397832552,-308.26,0.00031822,2]
[356896139,1743397832562,-200.0,0.00031826,2]
[356896140,1743397832572,-250.0,0.00031846,2]
[356896141,1743397832582,-1000.0,0.00031926,2]
[356896142,1743397832592,-2451.18,0.00032045,2]
[356896143,1743397832601,-154.78,0.0003207,120]
[356896144,1743397832611,-4328.64951372,0.00032084,2]
[356896145,1743397832620,-31410.4,0.00032094,120]
[356896146,1743397832629,-678.01,0.00032318,2]
[356896147,1743397832638,-6444.16,0.00032344,2]
[356896148,1743397832648,-300.0,0.00032345,2]
[356896149,1743397832657,-2751.0,0.00032447,120]
[356896150,1743397832666,-178.04,0.0003248,2]
[356896151,1743397832675,-550.49,0.00032485,2]
[356896152,1743397832685,-5862.51,0.00032514,2]
[356896153,1743397832695,-164.03,0.00032536,2]
[356896154,1743397832704,-45699.36,0.00032541,2]
[356896155,1743397832713,-265.52488725,0.00032559,2]
[356896156,1743397832722,-23900.0,0.00032593,2]
[356896157,1743397832731,-427.52,0.00032659,2]
[356896158,1743397832741,-500.0,0.00032967,2]
[356896159,1743397832750,-150.57,0.00033434,2]
[356896160,1743397832759,-150.0,0.000335,2]
[356896161,1743397832768,-168.55,0.00033639,2]
[356896162,1743397832777,-150.57,0.00033935,2]
[356896163,1743397832786,-784.12,0.00034039,2]
[356896164,1743397832796,-500.0,0.00034431,2]
[356896165,1743397832805,-150.57,0.00034437,2]
[356896166,1743397832814,-2695.3287848,0.0003458,4]